[Event "The Schackveckan 2023: Göteborg open"]
[Site "Göteborgs schackcentrum, Vegagatan 20, Gothenburg, Sweden"]
[Date "2023.08.13"]
[Round "8.2"]
[White "Hector, Jonny"]
[Black "Olsson, William"]
[Result "1-0"]
[TimeControl "15 minutes + 5 seconds per move from move one (Round 1 - 4) / 90 minutes + 30 seconds per move from move one (Round 5 - 8)"]
[WhiteTitle "GM"]
[BlackTitle "FM"]
[WhiteFideId "1700090"]
[BlackFideId "1741721"]
[WhiteElo "2466"]
[BlackElo "2400"]

1. d4 {[%clk 01:30:50]} {[%emt 00:00:10]} d5 {[%clk 01:30:51]} {[%emt
00:00:10]} 2. Nc3 {[%clk 01:31:12]} {[%emt 00:00:07]} Nf6 {[%clk 01:30:35]}
{[%emt 00:00:47]} 3. Bg5 {[%clk 01:31:35]} {[%emt 00:00:06]} e6 {[%clk
01:27:08]} {[%emt 00:03:59]} 4. e4 {[%clk 01:31:54]} {[%emt 00:00:09]} dxe4
{[%clk 01:27:34]} {[%emt 00:00:05]} 5. Nxe4 {[%clk 01:32:15]} {[%emt 00:00:08]}
Nbd7 {[%clk 01:27:33]} {[%emt 00:00:30]} 6. Nf3 {[%clk 01:32:14]} {[%emt
00:00:31]} Be7 {[%clk 01:27:58]} {[%emt 00:00:06]} 7. Nxf6+ {[%clk 01:32:14]}
{[%emt 00:00:30]} Bxf6 {[%clk 01:26:45]} {[%emt 00:01:43]} 8. h4 {[%clk
01:30:22]} {[%emt 00:02:22]} c5 {[%clk 01:25:30]} {[%emt 00:01:45]} 9. dxc5
{[%clk 01:29:33]} {[%emt 00:01:19]} Qa5+ {[%clk 01:24:37]} {[%emt 00:01:24]} 10.
c3 {[%clk 01:28:57]} {[%emt 00:01:05]} Qxc5 {[%clk 01:25:01]} {[%emt 00:00:06]}
11. Qc2 {[%clk 01:28:50]} {[%emt 00:00:37]} Ne5 {[%clk 01:19:11]} {[%emt
00:06:15]} 12. Nd2 {[%clk 01:23:40]} {[%emt 00:05:45]} Bxg5 {[%clk 01:15:55]}
{[%emt 00:03:46]} 13. hxg5 {[%clk 01:22:43]} {[%emt 00:01:26]} Ng6 {[%clk
01:14:41]} {[%emt 00:01:46]} 14. Ne4 {[%clk 01:21:35]} {[%emt 00:01:37]} Qe5
{[%clk 01:12:41]} {[%emt 00:02:30]} 15. O-O-O {[%clk 01:18:17]} {[%emt
00:03:48]} O-O {[%clk 01:11:17]} {[%emt 00:01:54]} 16. g3 {[%clk 01:17:46]}
{[%emt 00:01:00]} Qa5 {[%clk 01:11:15]} {[%emt 00:00:33]} 17. Kb1 {[%clk
01:12:08]} {[%emt 00:06:07]} e5 {[%clk 01:04:02]} {[%emt 00:07:44]} 18. Bc4
{[%clk 01:07:08]} {[%emt 00:05:29]} Qc7 {[%clk 00:59:50]} {[%emt 00:04:43]} 19.
Bd5 {[%clk 01:04:37]} {[%emt 00:03:01]} Be6 {[%clk 00:57:04]} {[%emt 00:03:16]}
20. Bxe6 {[%clk 00:55:15]} {[%emt 00:09:52]} fxe6 {[%clk 00:57:15]} {[%emt
00:00:19]} 21. Rd6 {[%clk 00:49:31]} {[%emt 00:06:14]} Rfd8 {[%clk 00:49:11]}
{[%emt 00:08:27]} 22. Rhd1 {[%clk 00:45:44]} {[%emt 00:04:23]} Rxd6 {[%clk
00:48:42]} {[%emt 00:01:00]} 23. Rxd6 {[%clk 00:43:00]} {[%emt 00:03:14]} Nf8
{[%clk 00:46:30]} {[%emt 00:02:42]} 24. Qd3 {[%clk 00:42:41]} {[%emt 00:00:48]}
a6 {[%clk 00:42:44]} {[%emt 00:04:17]} 25. b3 {[%clk 00:39:17]} {[%emt
00:03:53]} Re8 {[%clk 00:42:16]} {[%emt 00:00:57]} 26. Kb2 {[%clk 00:39:03]}
{[%emt 00:00:46]} Re7 {[%clk 00:39:48]} {[%emt 00:02:58]} 27. Rd8 {[%clk
00:36:43]} {[%emt 00:02:49]} Rd7 {[%clk 00:40:07]} {[%emt 00:00:12]} 28. Qxd7
{[%clk 00:35:28]} {[%emt 00:01:43]} Qxd7 {[%clk 00:40:23]} {[%emt 00:00:16]} 29.
Rxd7 {[%clk 00:35:51]} {[%emt 00:00:07]} Nxd7 {[%clk 00:40:50]} {[%emt
00:00:03]} 30. c4 {[%clk 00:35:02]} {[%emt 00:01:18]} b6 {[%clk 00:32:50]}
{[%emt 00:08:30]} 31. b4 {[%clk 00:32:46]} {[%emt 00:02:46]} Kf7 {[%clk
00:32:51]} {[%emt 00:00:26]} 32. c5 {[%clk 00:21:53]} {[%emt 00:11:27]} bxc5
{[%clk 00:32:21]} {[%emt 00:01:00]} 33. Nxc5 {[%clk 00:22:19]} {[%emt
00:00:03]} Nb8 {[%clk 00:32:39]} {[%emt 00:00:13]} 34. Kc3 {[%clk 00:22:09]}
{[%emt 00:00:39]} Kg6 {[%clk 00:32:11]} {[%emt 00:00:59]} 35. Nxe6 {[%clk
00:21:30]} {[%emt 00:01:08]} Kf5 {[%clk 00:32:36]} {[%emt 00:00:06]} 36. Nxg7+
{[%clk 00:21:40]} {[%emt 00:00:20]} Kxg5 {[%clk 00:32:58]} {[%emt 00:00:08]} 37.
f3 {[%clk 00:21:43]} {[%emt 00:00:26]} Kf6 {[%clk 00:28:12]} {[%emt 00:05:17]}
38. Nh5+ {[%clk 00:22:07]} {[%emt 00:00:05]} Kg5 {[%clk 00:28:39]} {[%emt
00:00:04]} 39. g4 {[%clk 00:22:06]} {[%emt 00:00:31]} e4 {[%clk 00:29:06]}
{[%emt 00:00:03]} 40. fxe4 {[%clk 00:22:10]} {[%emt 00:00:25]} Kxg4 {[%clk
00:28:37]} {[%emt 00:01:00]} 41. Nf6+ {[%clk 00:22:27]} {[%emt 00:00:12]} Kg5
{[%clk 00:23:23]} {[%emt 00:05:45]} 42. Nxh7+ {[%clk 00:22:47]} {[%emt
00:00:09]} Kg6 {[%clk 00:23:48]} {[%emt 00:00:06]} 43. Kd4 {[%clk 00:22:33]}
{[%emt 00:00:43]} Kxh7 {[%clk 00:23:15]} {[%emt 00:01:03]} 44. Kd5 {[%clk
00:22:14]} {[%emt 00:00:50]} Nd7 {[%clk 00:22:58]} {[%emt 00:00:47]} 45. Kc6
{[%clk 00:22:09]} {[%emt 00:00:35]} Ne5+ {[%clk 00:21:31]} {[%emt 00:01:58]} 46.
Kb6 {[%clk 00:22:19]} {[%emt 00:00:20]} Kg6 {[%clk 00:21:06]} {[%emt 00:00:55]}
47. Kxa6 {[%clk 00:22:31]} {[%emt 00:00:18]} Kf6 {[%clk 00:21:22]} {[%emt
00:00:14]} 48. Kb7 {[%clk 00:20:47]} {[%emt 00:02:14]} Nc4 {[%clk 00:18:33]}
{[%emt 00:03:19]} 49. a4 {[%clk 00:16:52]} {[%emt 00:04:25]} Nd6+ {[%clk
00:15:55]} {[%emt 00:03:07]} 50. Kb8 {[%clk 00:13:26]} {[%emt 00:03:56]} 1-0

[Event "The Schackveckan 2023: Göteborg open"]
[Site "Göteborgs schackcentrum, Vegagatan 20, Gothenburg, Sweden"]
[Date "2023.08.13"]
[Round "8.3"]
[White "Wengholm, Anders"]
[Black "Wesslen, Ulf"]
[Result "1/2-1/2"]
[TimeControl "15 minutes + 5 seconds per move from move one (Round 1 - 4) / 90 minutes + 30 seconds per move from move one (Round 5 - 8)"]
[WhiteFideId "1704818"]
[BlackFideId "1705199"]
[WhiteElo "2155"]
[BlackElo "1916"]

1. Nf3 {[%clk 01:30:58]} {[%emt 00:00:02]} Nf6 {[%clk 01:30:09]} {[%emt
00:00:51]} 2. c4 {[%clk 01:31:20]} {[%emt 00:00:08]} e6 {[%clk 01:30:27]}
{[%emt 00:00:12]} 3. g3 {[%clk 01:30:17]} {[%emt 00:01:33]} b6 {[%clk
01:29:55]} {[%emt 00:01:02]} 4. Bg2 {[%clk 01:30:36]} {[%emt 00:00:11]} Bb7
{[%clk 01:30:09]} {[%emt 00:00:16]} 5. O-O {[%clk 01:30:59]} {[%emt 00:00:07]}
Be7 {[%clk 01:29:45]} {[%emt 00:00:54]} 6. Nc3 {[%clk 01:30:48]} {[%emt
00:00:42]} O-O {[%clk 01:29:07]} {[%emt 00:01:08]} 7. d4 {[%clk 01:31:06]}
{[%emt 00:00:12]} d5 {[%clk 01:25:43]} {[%emt 00:03:52]} 8. cxd5 {[%clk
01:31:25]} {[%emt 00:00:12]} exd5 {[%clk 01:25:39]} {[%emt 00:00:34]} 9. Bf4
{[%clk 01:31:35]} {[%emt 00:00:21]} Re8 {[%clk 01:22:17]} {[%emt 00:03:50]} 10.
Rc1 {[%clk 01:30:52]} {[%emt 00:01:14]} c6 {[%clk 01:21:04]} {[%emt 00:01:43]}
11. Ne5 {[%clk 01:27:37]} {[%emt 00:03:46]} Nbd7 {[%clk 01:17:40]} {[%emt
00:03:53]} 12. Qa4 {[%clk 01:15:34]} {[%emt 00:12:34]} Nxe5 {[%clk 01:12:08]}
{[%emt 00:06:02]} 13. dxe5 {[%clk 01:13:28]} {[%emt 00:02:36]} Nd7 {[%clk
01:11:44]} {[%emt 00:00:53]} 14. h4 {[%clk 01:06:35]} {[%emt 00:07:23]} Bf8
{[%clk 01:08:35]} {[%emt 00:03:39]} 15. Rfd1 {[%clk 01:02:46]} {[%emt
00:04:19]} Nxe5 {[%clk 01:03:30]} {[%emt 00:05:34]} 16. e4 {[%clk 01:02:40]}
{[%emt 00:00:36]} b5 {[%clk 00:56:01]} {[%emt 00:08:00]} 17. Qb3 {[%clk
00:57:40]} {[%emt 00:05:31]} d4 {[%clk 00:50:32]} {[%emt 00:05:58]} 18. Ne2
{[%clk 00:55:35]} {[%emt 00:02:34]} Qb6 {[%clk 00:39:10]} {[%emt 00:11:53]} 19.
Nxd4 {[%clk 00:54:00]} {[%emt 00:02:05]} a5 {[%clk 00:34:29]} {[%emt 00:05:11]}
20. Nf5 {[%clk 00:50:04]} {[%emt 00:04:25]} a4 {[%clk 00:29:21]} {[%emt
00:05:39]} 21. Qc2 {[%clk 00:49:57]} {[%emt 00:00:37]} c5 {[%clk 00:24:07]}
{[%emt 00:05:43]} 22. b3 {[%clk 00:43:58]} {[%emt 00:06:31]} Qe6 {[%clk
00:17:16]} {[%emt 00:07:20]} 23. h5 {[%clk 00:36:41]} {[%emt 00:07:47]} h6
{[%clk 00:15:49]} {[%emt 00:01:57]} 24. Ne3 {[%clk 00:36:16]} {[%emt 00:00:55]}
Nc6 {[%clk 00:14:15]} {[%emt 00:02:04]} 25. Nd5 {[%clk 00:35:17]} {[%emt
00:01:30]} axb3 {[%clk 00:12:11]} {[%emt 00:02:34]} 26. axb3 {[%clk 00:34:36]}
{[%emt 00:01:11]} Nd4 {[%clk 00:10:17]} {[%emt 00:02:23]} 27. Rxd4 {[%clk
00:28:12]} {[%emt 00:06:54]} cxd4 {[%clk 00:10:34]} {[%emt 00:00:13]} 28. Nc7
{[%clk 00:28:32]} {[%emt 00:00:10]} Qg4 {[%clk 00:08:41]} {[%emt 00:02:23]} 29.
Nxe8 {[%clk 00:27:24]} {[%emt 00:01:38]} Rxe8 {[%clk 00:08:50]} {[%emt
00:00:21]} 30. Qd3 {[%clk 00:27:46]} {[%emt 00:00:08]} Qxh5 {[%clk 00:08:23]}
{[%emt 00:00:57]} 31. Qxd4 {[%clk 00:28:03]} {[%emt 00:00:13]} Qg6 {[%clk
00:08:03]} {[%emt 00:00:50]} 32. f3 {[%clk 00:25:59]} {[%emt 00:02:34]} Qe6
{[%clk 00:07:08]} {[%emt 00:01:25]} 33. Rc7 {[%clk 00:20:32]} {[%emt 00:05:58]}
1/2-1/2

[Event "The Schackveckan 2023: Göteborg open"]
[Site "Göteborgs schackcentrum, Vegagatan 20, Gothenburg, Sweden"]
[Date "2023.08.13"]
[Round "8.4"]
[White "Bjorklund, Thomas"]
[Black "Yang, Mandi"]
[Result "1-0"]
[TimeControl "15 minutes + 5 seconds per move from move one (Round 1 - 4) / 90 minutes + 30 seconds per move from move one (Round 5 - 8)"]
[WhiteFideId "1724576"]
[BlackFideId "1774778"]
[WhiteElo "2139"]
[BlackElo "1457"]

1. e4 {[%emt 00:00:10]} c5 {[%clk 01:30:53]} 2. c3 {[%clk 01:31:24]} {[%emt
00:00:03]} d5 {[%clk 01:31:13]} {[%emt 00:00:10]} 3. exd5 {[%clk 01:31:42]}
{[%emt 00:00:13]} Qxd5 {[%clk 01:31:30]} {[%emt 00:00:12]} 4. d4 {[%clk
01:31:20]} {[%emt 00:00:52]} Nc6 {[%clk 01:31:56]} {[%emt 00:00:05]} 5. Nf3
{[%clk 01:31:45]} {[%emt 00:00:04]} Bg4 {[%clk 01:32:08]} {[%emt 00:00:18]} 6.
Be2 {[%clk 01:32:09]} {[%emt 00:00:05]} e6 {[%clk 01:32:17]} {[%emt 00:00:23]}
7. O-O {[%clk 01:31:56]} {[%emt 00:00:42]} Nf6 {[%clk 01:30:50]} {[%emt
00:01:57]} 8. Be3 {[%clk 01:31:34]} {[%emt 00:00:52]} cxd4 {[%clk 01:26:41]}
{[%emt 00:04:40]} 9. Nxd4 {[%clk 01:31:36]} {[%emt 00:00:27]} Bxe2 {[%clk
01:26:07]} {[%emt 00:01:05]} 10. Qxe2 {[%clk 01:31:50]} {[%emt 00:00:16]} Bd6
{[%clk 01:25:36]} {[%emt 00:01:01]} 11. Rd1 {[%clk 01:31:25]} {[%emt 00:00:55]}
Rd8 {[%clk 01:25:12]} {[%emt 00:00:54]} 12. Nd2 {[%clk 01:30:26]} {[%emt
00:01:28]} O-O {[%clk 01:23:38]} {[%emt 00:00:33]} 13. N2b3 {[%clk 01:27:56]}
{[%emt 00:04:32]} Bb8 {[%clk 01:22:28]} {[%emt 00:01:40]} 14. Nxc6 {[%clk
01:22:31]} {[%emt 00:05:55]} Qxc6 {[%clk 01:22:27]} {[%emt 00:00:30]} 15. Nd4
{[%clk 01:22:17]} {[%emt 00:00:44]} Qc7 {[%clk 01:21:54]} {[%emt 00:01:03]} 16.
Nf3 {[%clk 01:20:04]} {[%emt 00:02:43]} h6 {[%clk 01:19:30]} {[%emt 00:02:54]}
17. Bd4 {[%clk 01:19:01]} {[%emt 00:01:34]} Rd5 {[%clk 01:06:35]} {[%emt
00:13:24]} 18. Bxf6 {[%clk 01:18:54]} {[%emt 00:00:36]} gxf6 {[%clk 01:06:28]}
{[%emt 00:00:38]} 19. Rxd5 {[%clk 01:19:15]} {[%emt 00:00:10]} exd5 {[%clk
01:06:44]} {[%emt 00:00:14]} 20. Qd2 {[%clk 01:19:24]} {[%emt 00:00:20]} Kh7
{[%clk 01:06:00]} {[%emt 00:01:14]} 21. Qxd5 {[%clk 01:19:29]} {[%emt
00:00:25]} Rg8 {[%clk 01:06:24]} {[%emt 00:00:06]} 22. Rd1 {[%clk 01:19:45]}
{[%emt 00:00:14]} Qf4 {[%clk 01:02:54]} {[%emt 00:04:00]} 23. g3 {[%clk
01:19:11]} {[%emt 00:01:03]} Qg4 {[%clk 01:00:47]} {[%emt 00:02:37]} 24. Qxf7+
{[%clk 01:18:22]} {[%emt 00:01:20]} 1-0

[Event "The Schackveckan 2023: Göteborg open"]
[Site "Göteborgs schackcentrum, Vegagatan 20, Gothenburg, Sweden"]
[Date "2023.08.13"]
[Round "8.5"]
[White "Granath, Jonas"]
[Black "Bengtsson, Siv"]
[Result "1-0"]
[TimeControl "15 minutes + 5 seconds per move from move one (Round 1 - 4) / 90 minutes + 30 seconds per move from move one (Round 5 - 8)"]
[WhiteFideId "1761013"]
[BlackFideId "1701673"]
[WhiteElo "1896"]
[BlackElo "2010"]

1. e4 {[%clk 01:30:56]} {[%emt 00:00:04]} c5 {[%clk 01:30:48]} {[%emt
00:00:13]} 2. c3 {[%clk 01:31:16]} {[%emt 00:00:09]} d5 {[%clk 01:31:14]}
{[%emt 00:00:05]} 3. exd5 {[%clk 01:31:41]} {[%emt 00:00:05]} Qxd5 {[%clk
01:31:40]} {[%emt 00:00:05]} 4. d4 {[%clk 01:32:03]} {[%emt 00:00:07]} Nc6
{[%clk 01:31:20]} {[%emt 00:00:51]} 5. Nf3 {[%clk 01:32:12]} {[%emt 00:00:20]}
Bg4 {[%clk 01:30:37]} {[%emt 00:01:13]} 6. dxc5 {[%clk 01:31:04]} {[%emt
00:01:38]} Bxf3 {[%clk 01:22:51]} {[%emt 00:08:16]} 7. Qxf3 {[%clk 01:27:32]}
{[%emt 00:04:02]} Qxf3 {[%clk 01:23:12]} {[%emt 00:00:10]} 8. gxf3 {[%clk
01:27:53]} {[%emt 00:00:08]} e6 {[%clk 01:22:44]} {[%emt 00:00:59]} 9. b4
{[%clk 01:27:16]} {[%emt 00:01:06]} a5 {[%clk 01:20:11]} {[%emt 00:03:03]} 10.
Bb5 {[%clk 01:24:22]} {[%emt 00:03:23]} Nge7 {[%clk 01:16:41]} {[%emt
00:04:01]} 11. Bb2 {[%clk 01:04:01]} {[%emt 00:20:51]} O-O-O {[%clk 01:05:24]}
{[%emt 00:11:47]} 12. a3 {[%clk 00:58:46]} {[%emt 00:05:45]} Ne5 {[%clk
00:53:53]} {[%emt 00:12:00]} 13. Nd2 {[%clk 00:56:34]} {[%emt 00:02:42]} N7g6
{[%clk 00:51:05]} {[%emt 00:03:19]} 14. O-O-O {[%clk 00:41:52]} {[%emt
00:15:11]} Nf4 {[%clk 00:42:10]} {[%emt 00:09:25]} 15. Nc4 {[%clk 00:32:29]}
{[%emt 00:09:53]} Nxc4 {[%clk 00:31:29]} {[%emt 00:11:12]} 16. Rxd8+ {[%clk
00:30:58]} {[%emt 00:02:01]} Kxd8 {[%clk 00:31:55]} {[%emt 00:00:04]} 17. Bxc4
{[%clk 00:27:03]} {[%emt 00:04:25]} Be7 {[%clk 00:32:00]} {[%emt 00:00:24]} 18.
Rd1+ {[%clk 00:23:24]} {[%emt 00:04:10]} Kc8 {[%clk 00:32:03]} {[%emt
00:00:28]} 19. Rd4 {[%clk 00:22:38]} {[%emt 00:01:13]} e5 {[%clk 00:29:53]}
{[%emt 00:02:42]} 20. Rd1 {[%clk 00:22:38]} {[%emt 00:00:30]} f6 {[%clk
00:26:20]} {[%emt 00:04:04]} 21. Kc2 {[%clk 00:21:45]} {[%emt 00:01:22]} Rd8
{[%clk 00:22:51]} {[%emt 00:04:00]} 22. Rxd8+ {[%clk 00:20:07]} {[%emt
00:02:07]} Kxd8 {[%clk 00:22:38]} {[%emt 00:00:41]} 23. Bc1 {[%clk 00:19:28]}
{[%emt 00:01:10]} Kc7 {[%clk 00:20:50]} {[%emt 00:02:18]} 24. Be3 {[%clk
00:19:48]} {[%emt 00:00:11]} Ng2 {[%clk 00:20:18]} {[%emt 00:01:02]} 25. Bd2
{[%clk 00:17:24]} {[%emt 00:02:54]} h5 {[%clk 00:14:24]} {[%emt 00:06:23]} 26.
Kd3 {[%clk 00:11:59]} {[%emt 00:05:56]} Nh4 {[%clk 00:09:52]} {[%emt 00:05:01]}
27. Bd5 {[%clk 00:11:01]} {[%emt 00:01:28]} f5 {[%clk 00:08:39]} {[%emt
00:01:44]} 28. Kc4 {[%clk 00:10:42]} {[%emt 00:00:49]} axb4 {[%clk 00:08:13]}
{[%emt 00:00:56]} 29. cxb4 {[%clk 00:10:51]} {[%emt 00:00:20]} g5 {[%clk
00:07:33]} {[%emt 00:01:10]} 30. b5 {[%clk 00:09:35]} {[%emt 00:01:47]} g4
{[%clk 00:07:04]} {[%emt 00:00:59]} 31. fxg4 {[%clk 00:09:52]} {[%emt
00:00:13]} hxg4 {[%clk 00:07:31]} {[%emt 00:00:04]} 32. Ba5+ {[%clk 00:08:19]}
{[%emt 00:02:02]} Kb8 {[%clk 00:07:40]} {[%emt 00:00:22]} 33. Bc3 {[%clk
00:03:46]} {[%emt 00:05:02]} Bf6 {[%clk 00:05:44]} {[%emt 00:02:25]} 34. a4
{[%clk 00:03:36]} {[%emt 00:00:41]} Ng6 {[%clk 00:05:50]} {[%emt 00:00:24]} 35.
Be6 {[%clk 00:02:58]} {[%emt 00:01:07]} Ne7 {[%clk 00:06:16]} {[%emt 00:00:04]}
36. a5 {[%clk 00:03:04]} {[%emt 00:00:25]} Ka7 {[%clk 00:05:15]} {[%emt
00:01:31]} 37. Bd7 {[%clk 00:02:54]} {[%emt 00:00:41]} Kb8 {[%clk 00:03:21]}
{[%emt 00:02:24]} 38. c6 {[%clk 00:01:13]} {[%emt 00:02:11]} bxc6 {[%clk
00:02:09]} {[%emt 00:01:43]} 39. Bxc6 {[%clk 00:01:34]} {[%emt 00:00:09]} f4
{[%clk 00:01:42]} {[%emt 00:00:56]} 40. Bd7 {[%clk 00:01:21]} {[%emt 00:00:43]}
g3 {[%clk 00:01:24]} {[%emt 00:00:47]} 41. hxg3 {[%clk 00:01:42]} {[%emt
00:00:09]} fxg3 {[%clk 00:01:45]} {[%emt 00:00:09]} 42. fxg3 {[%clk 00:02:09]}
{[%emt 00:00:04]} Kc7 {[%clk 00:02:07]} {[%emt 00:00:08]} 43. Bh3 {[%clk
00:02:15]} {[%emt 00:00:23]} Nc8 {[%clk 00:02:02]} {[%emt 00:00:35]} 44. Bxc8
{[%clk 00:02:30]} {[%emt 00:00:15]} Kxc8 {[%clk 00:02:28]} {[%emt 00:00:03]} 45.
Kd5 {[%clk 00:02:42]} {[%emt 00:00:19]} Bd8 {[%clk 00:02:44]} {[%emt 00:00:13]}
46. b6 {[%clk 00:02:53]} {[%emt 00:00:19]} Kb7 {[%clk 00:03:08]} {[%emt
00:00:06]} 47. g4 {[%clk 00:02:26]} {[%emt 00:00:58]} Be7 {[%clk 00:03:36]}
{[%emt 00:00:01]} 48. Kxe5 {[%clk 00:02:23]} {[%emt 00:00:34]} Bf8 {[%clk
00:04:00]} {[%emt 00:00:06]} 49. Ke6 {[%clk 00:02:39]} {[%emt 00:00:14]} 1-0

[Event "The Schackveckan 2023: Göteborg open"]
[Site "Göteborgs schackcentrum, Vegagatan 20, Gothenburg, Sweden"]
[Date "2023.08.13"]
[Round "8.6"]
[White "Ottgard, Andreas"]
[Black "Krantz, Martin"]
[Result "0-1"]
[TimeControl "15 minutes + 5 seconds per move from move one (Round 1 - 4) / 90 minutes + 30 seconds per move from move one (Round 5 - 8)"]
[WhiteFideId "1730592"]
[BlackFideId "1724100"]
[WhiteElo "1874"]
[BlackElo "2000"]

1. c4 {[%clk 01:30:55]} {[%emt 00:00:04]} e6 {[%clk 01:29:33]} {[%emt
00:01:28]} 2. g3 {[%clk 01:31:20]} {[%emt 00:00:05]} d5 {[%clk 01:29:49]}
{[%emt 00:00:14]} 3. Bg2 {[%clk 01:31:36]} {[%emt 00:00:14]} Nf6 {[%clk
01:29:53]} {[%emt 00:00:27]} 4. Nf3 {[%clk 01:30:36]} {[%emt 00:01:30]} c5
{[%clk 01:28:51]} {[%emt 00:01:32]} 5. O-O {[%clk 01:29:57]} {[%emt 00:01:08]}
Nc6 {[%clk 01:28:01]} {[%emt 00:01:20]} 6. e3 {[%clk 01:27:01]} {[%emt
00:03:25]} d4 {[%clk 01:25:59]} {[%emt 00:02:33]} 7. exd4 {[%clk 01:27:11]}
{[%emt 00:00:21]} cxd4 {[%clk 01:26:22]} {[%emt 00:00:07]} 8. Re1 {[%clk
01:27:20]} {[%emt 00:00:20]} Bd6 {[%clk 01:25:05]} {[%emt 00:01:48]} 9. d3
{[%clk 01:25:13]} {[%emt 00:02:36]} O-O {[%clk 01:25:03]} {[%emt 00:00:32]} 10.
Na3 {[%clk 01:21:50]} {[%emt 00:03:53]} e5 {[%clk 01:21:55]} {[%emt 00:03:39]}
11. Nc2 {[%clk 01:21:46]} {[%emt 00:00:33]} a5 {[%clk 01:20:36]} {[%emt
00:01:49]} 12. a3 {[%clk 01:19:50]} {[%emt 00:02:26]} h6 {[%clk 01:13:51]}
{[%emt 00:07:15]} 13. Rb1 {[%clk 01:18:08]} {[%emt 00:02:12]} a4 {[%clk
01:13:39]} {[%emt 00:00:42]} 14. b4 {[%clk 01:17:46]} {[%emt 00:00:52]} axb3
{[%clk 01:14:00]} {[%emt 00:00:10]} 15. Rxb3 {[%clk 01:18:09]} {[%emt
00:00:07]} Nd7 {[%clk 01:13:33]} {[%emt 00:00:55]} 16. Nb4 {[%clk 01:11:25]}
{[%emt 00:07:16]} Nc5 {[%clk 01:11:58]} {[%emt 00:02:04]} 17. Nxc6 {[%clk
01:10:55]} {[%emt 00:00:59]} bxc6 {[%clk 01:12:23]} {[%emt 00:00:06]} 18. Nxe5
{[%clk 01:10:15]} {[%emt 00:01:10]} Nxb3 {[%clk 01:10:01]} {[%emt 00:02:52]} 19.
Nxc6 {[%clk 00:59:12]} {[%emt 00:11:32]} Qb6 {[%clk 01:05:15]} {[%emt
00:05:16]} 20. Nb4 {[%clk 00:58:26]} {[%emt 00:01:16]} Nxc1 {[%clk 00:54:41]}
{[%emt 00:11:04]} 21. Bxa8 {[%clk 00:58:09]} {[%emt 00:00:48]} Qa7 {[%clk
00:51:13]} {[%emt 00:03:53]} 22. Bd5 {[%clk 00:49:11]} {[%emt 00:09:33]} Bxb4
{[%clk 00:42:40]} {[%emt 00:09:04]} 23. axb4 {[%clk 00:49:25]} {[%emt
00:00:16]} Na2 {[%clk 00:42:58]} {[%emt 00:00:11]} 24. Qa1 {[%clk 00:49:01]}
{[%emt 00:00:54]} Qa4 {[%clk 00:42:55]} {[%emt 00:00:33]} 25. Qxd4 {[%clk
00:47:15]} {[%emt 00:02:16]} Nxb4 {[%clk 00:41:14]} {[%emt 00:02:12]} 26. c5
{[%clk 00:36:48]} {[%emt 00:10:56]} Qd7 {[%clk 00:37:45]} {[%emt 00:03:58]} 27.
Bxf7+ {[%clk 00:36:18]} {[%emt 00:01:00]} Qxf7 {[%clk 00:37:46]} {[%emt
00:00:30]} 0-1